bitfinex/quotes_ETHUSD_20220218
["timestamp","ask_amount","ask_price","bid_price","bid_amount"]
[1645197026805,0.5,2849.0,2848.8,0.62431484]
[1645197027806,0.49884625,2849.0,2848.8,0.62431484]
[1645197028206,0.50059262,2849.0,2848.8,0.62431484]
[1645197028807,0.50059262,2849.0,2848.9,0.0008]
[1645197029308,0.80059262,2849.0,2848.4,0.1754]
[1645197029511,0.5006099,2849.0,2848.2,20.33]
[1645197029705,0.8006099,2849.0,2848.2,21.2081266]
[1645197029908,0.5006099,2849.0,2848.2,20.33]
[1645197030766,0.00118233,2848.7,2848.2,20.33]
[1645197031366,0.00118233,2848.7,2848.2,21.2081195]
[1645197031571,0.49884625,2849.0,2848.2,20.33]
[1645197031767,0.1813169,2850.3,2848.4,20.33]
[1645197031970,0.0058169,2850.3,2848.8,20.33]
[1645197032166,0.0058169,2850.3,2848.9,0.417]
[1645197032367,3.5058169,2850.6,2850.2,0.49080146]
[1645197032573,0.87779,2850.7,2850.2,0.34501011]
[1645197032767,1.75556,2850.7,2850.2,0.34501011]
[1645197032967,0.87778,2850.5,2850.2,0.34501011]
[1645197033168,0.87777,2850.7,2849.2,0.87777]
[1645197033368,0.87777,2850.7,2849.1,30.8618]
[1645197033369,0.0058169,2850.4,2849.1,30.8618]
[1645197033669,0.0058169,2850.4,2849.5,20.33]
[1645197033869,1.7613769,2850.6,2849.5,20.33]
[1645197034304,0.00198799,2849.9,2849.5,20.33]
[1645197034506,0.00198799,2849.9,2849.7,0.63600202]
[1645197035514,0.00198798,2849.9,2849.7,0.63600202]
[1645197036307,0.0058169,2850.6,2849.7,0.63600202]
[1645197036509,0.0058169,2850.7,2849.7,0.63600202]
[1645197036710,3.5109,2851.1,2849.7,0.63600202]
[1645197036711,0.00198798,2849.9,2849.7,0.63600202]
[1645197037507,0.0058169,2850.6,2849.7,0.63600202]
[1645197037709,0.0058169,2850.6,2849.5,0.8776892]
[1645197037710,1.17776,2850.6,2850.3,0.57190294]
[1645197038160,0.0058169,2850.8,2850.3,0.57190294]
[1645197038365,0.13819996,2851.4,2850.4,20.33]
[1645197038366,0.0058169,2851.1,2850.4,20.33]
[1645197038658,0.0058169,2851.3,2850.4,20.33]
[1645197039059,0.0058169,2851.3,2850.9,0.63750802]
[1645197039460,0.0058169,2851.3,2850.9,20.96750802]
[1645197039859,0.0058169,2851.8,2850.9,20.96750802]
[1645197040260,0.0058169,2851.8,2850.9,0.63750802]
[1645197040463,0.0058169,2851.8,2850.2,1.75449]
[1645197040464,0.48942232,2851.4,2850.1,0.1753]
[1645197040663,0.48942232,2851.4,2850.2,1.7548807]
[1645197040664,0.0058169,2851.3,2850.2,1.7548807]
[1645197040862,0.0058169,2851.3,2849.8,1.4029]
[1645197040863,1.0586569,2851.3,2849.8,1.2276]
[1645197041061,1.0586569,2851.3,2850.0,0.8775585]
[1645197041262,1.9362869,2851.3,2849.7,20.34166326]
[1645197041461,1.3586569,2851.3,2850.5,0.60516222]
[1645197041664,1.6586569,2851.3,2850.5,0.60516222]
[1645197041907,0.7811169,2851.3,2850.5,0.60516222]
[1645197042309,0.25,2851.3,2850.5,0.60516222]
[1645197042504,0.25,2851.3,2850.6,0.01850163]
[1645197042704,0.1811169,2851.6,2850.6,0.01850163]
[1645197043108,0.87745,2851.5,2850.6,0.01850163]
[1645197043319,5.0,2851.3,2850.6,0.01850163]
[1645197043511,0.5923,2851.2,2850.6,0.01850163]
[1645197043708,0.87791,2851.1,2850.6,0.01306184]
[1645197043906,0.1753,2851.0,2850.6,0.01306184]
[1645197044104,0.8777647,2850.9,2850.6,0.01306184]
[1645197044308,0.1753,2850.8,2850.6,0.01306184]
[1645197044509,0.5,2850.8,2850.6,0.01306184]
[1645197045108,0.5019486,2850.8,2850.6,0.01306184]
[1645197045557,0.0019486,2850.8,2850.6,0.01306184]
[1645197045958,0.3,2850.9,2850.6,0.01306184]
[1645197046457,0.0019486,2850.8,2850.6,0.01306184]
[1645197047562,0.0019486,2850.8,2850.7,0.01654743]
[1645197047758,4.86e-05,2850.8,2850.7,20.34654743]
[1645197047959,4.86e-05,2850.8,2850.7,20.76354743]
[1645197048162,4.86e-05,2850.8,2850.5,0.03500422]
[1645197048959,0.71786405,2851.4,2850.5,0.03500422]
[1645197049159,0.1753,2851.4,2850.8,0.53517802]
[1645197049413,2.6388969,2851.5,2850.8,0.53517802]
[1645197049414,0.5,2850.9,2850.8,0.53517802]
[1645197050411,0.00173249,2851.2,2850.8,0.53517802]
[1645197050811,0.00173249,2851.2,2850.8,20.86517802]
[1645197051018,1.7608169,2851.6,2851.0,26.83]
[1645197051019,0.0058169,2851.6,2851.0,26.83]
[1645197051214,0.00173251,2851.1,2851.0,20.33]
[1645197051411,0.00173251,2851.1,2851.0,0.87719]
[1645197051613,0.00173251,2851.1,2850.8,0.53517802]
[1645197051812,0.00173251,2851.1,2850.8,8.20917802]
[1645197052215,0.00173251,2851.1,2850.9,20.33]
[1645197052413,0.0058169,2852.0,2850.9,20.33]
[1645197052612,0.0058169,2852.0,2851.0,0.01815968]
[1645197052813,0.87729,2852.0,2851.0,0.01815968]
[1645197053061,0.87729,2852.0,2851.8,0.64133941]
[1645197053261,0.87729,2852.0,2851.0,0.01815968]
[1645197054064,0.87741,2851.6,2851.3,0.022607]
[1645197054263,0.3,2851.5,2851.3,0.022607]
[1645197054867,0.4753,2851.5,2851.3,0.022607]
[1645197055065,0.3,2851.5,2851.3,0.022607]
[1645197055466,0.3,2851.5,2851.3,0.01597176]
[1645197055765,0.60332225,2851.4,2851.3,0.01597176]
[1645197057615,0.3,2851.4,2851.3,0.01597176]
[1645197058017,2.05689989,2851.5,2851.3,0.01597176]
[1645197058216,2.35689989,2851.5,2851.3,0.01597176]
[1645197058418,0.1753,2851.4,2851.3,0.01597176]
[1645197058617,0.1753,2851.4,2849.7,7.1856]
[1645197058618,6.5,2851.3,2849.7,7.1856]
[1645197058817,0.8778,2850.9,2849.5,5.97505453]
[1645197059019,0.1754,2850.8,2849.5,0.01115453]
[1645197059217,0.4754,2850.8,2849.5,0.01115453]
[1645197059418,0.55684049,2850.3,2849.5,0.01115453]
[1645197059619,0.1754,2850.2,2849.5,0.01115453]
[1645197059820,0.87799,2850.1,2849.5,0.01115453]
[1645197060219,1.47799,2850.1,2849.5,0.01115453]
[1645197060418,0.55879,2849.6,2849.5,0.01115453]
[1645197060665,0.55879,2849.6,2849.5,5.453e-05]
[1645197060861,2.05638,2849.7,2849.5,5.453e-05]
[1645197061062,0.1754,2849.6,2849.5,5.453e-05]
[1645197061664,0.87838,2849.5,2849.2,0.00707665]
[1645197061863,1.75663,2849.3,2849.2,0.00707665]
[1645197062261,2.35663,2849.3,2848.6,0.5570069]
[1645197062462,2.35663,2849.3,2847.7,7.4567]
[1645197062772,0.87831,2849.1,2847.7,7.4567]
[1645197063165,3.235025,2849.3,2847.7,7.4567]
[1645197063166,0.1754,2849.3,2847.8,23.83]
[1645197063366,0.1754,2850.0,2848.0,20.33]
[1645197063565,1.2089,2850.3,2848.5,20.33]
[1645197063866,2.80885,2850.7,2848.8,3.5112352]
[1645197064065,0.60235268,2850.6,2850.0,0.61206795]
[1645197064319,2.80885,2850.7,2850.0,0.61206795]
[1645197064320,2.63345,2850.7,2850.0,0.61206795]
[1645197064512,0.5,2850.2,2850.0,0.61206795]
[1645197065113,0.0208394,2850.8,2850.0,0.61206795]
[1645197065114,0.48893708,2850.8,2850.0,0.61206795]
[1645197065814,3.98893708,2850.8,2849.2,0.00758437]
[1645197066214,3.98893708,2850.8,2849.2,0.88541437]
[1645197066414,0.48893708,2850.8,2849.4,0.8778101]
[1645197066618,0.48893708,2850.8,2849.2,0.00758437]
[1645197066814,0.48893708,2850.8,2850.3,0.47257248]
[1645197067014,0.48893708,2850.8,2849.3,0.1754]
[1645197067214,0.48893708,2850.8,2849.6,20.33]
[1645197067615,0.87777,2850.6,2849.4,1.7554195]
[1645197067820,0.3,2850.6,2849.4,1.7554195]
[1645197068067,0.3,2850.6,2850.2,0.01204885]
[1645197068262,0.3,2850.7,2850.2,0.01204885]
[1645197068662,0.0058169,2851.0,2850.2,0.01204885]
[1645197068864,0.1754,2851.1,2850.2,0.01204885]
[1645197068865,0.1812169,2851.1,2850.2,0.01204885]
[1645197069263,0.4812169,2851.1,2850.2,0.01204885]
[1645197069464,0.3058169,2851.1,2850.2,0.01204885]
[1645197069663,0.59485705,2851.0,2850.4,0.60250975]
[1645197070067,0.89485705,2851.0,2850.4,0.60250975]
[1645197070464,1.19485705,2851.0,2850.4,0.60250975]
[1645197070667,0.6,2851.0,2850.4,0.60250975]
[1645197070868,0.3,2850.9,2850.5,0.8775867]
[1645197071063,0.7753,2851.2,2850.5,0.8775867]
[1645197071265,0.4753,2851.2,2850.5,0.8775867]
[1645197071466,0.3,2851.2,2850.5,0.8775867]
[1645197071666,0.00762825,2851.3,2851.1,0.64364873]
[1645197071913,0.00181135,2851.3,2851.1,0.64364873]
[1645197072511,0.0058169,2851.7,2851.1,0.64364873]
[1645197072711,0.8832769,2851.9,2851.1,0.64364873]
[1645197072912,0.00181156,2851.3,2851.1,0.64364873]
[1645197073513,0.00181156,2851.3,2850.9,0.8774475]
[1645197073715,0.65755148,2851.8,2850.7,1.7548696]
[1645197073716,5.1753,2851.7,2850.7,1.7548696]
[1645197073916,0.87754,2851.6,2850.7,1.7548696]
[1645197074215,0.87754,2851.6,2850.4,0.03769318]
[1645197074216,0.00181156,2851.3,2850.4,0.03769318]
[1645197074914,0.00181156,2851.3,2851.1,0.50434646]
[1645197075114,0.00181156,2851.3,2850.4,0.03769318]
[1645197075315,0.00378516,2851.3,2850.4,0.03769318]
[1645197075562,0.0019736,2851.3,2850.4,0.03769318]
[1645197076160,0.0019736,2851.3,2850.9,0.57631519]
[1645197076560,0.0019736,2851.3,2850.4,0.03769318]
[1645197077562,0.51191802,2850.8,2850.4,0.03769318]
[1645197077765,3.5,2850.7,2850.6,0.01866386]
[1645197077963,0.81191802,2850.8,2850.6,0.01866386]
[1645197078162,0.4753,2850.7,2850.6,0.01866386]
[1645197078965,0.4753,2850.7,2850.6,0.01396619]
[1645197079413,0.3,2850.7,2850.6,0.01396619]
[1645197082315,0.3,2850.7,2850.5,0.03568159]
[1645197083167,3.8,2850.7,2850.4,0.0178695]
[1645197083369,0.87788,2850.6,2850.4,0.0178695]
[1645197083568,1.87788,2850.6,2850.4,0.0178695]
[1645197083773,0.4754,2850.6,2850.4,0.0178695]
[1645197084170,0.6,2850.7,2850.4,0.0178695]
[1645197084370,0.8778,2850.6,2850.4,0.0178695]
[1645197084570,8.5,2850.5,2850.4,0.0178695]
[1645197084772,6.5,2850.4,2849.2,0.00744581]
[1645197084973,3.5,2850.3,2849.2,0.00744581]
[1645197085177,4.1,2850.3,2849.2,0.00744573]
[1645197085372,1.87803,2850.2,2849.2,0.00744573]
[1645197085573,0.87806,2850.0,2849.2,0.00744573]
[1645197085772,2.17806,2850.0,2849.2,0.00744573]
[1645197085972,0.51241406,2849.4,2849.2,0.00744573]
[1645197086374,0.51241406,2849.4,2849.1,0.00702992]
[1645197086833,0.81241406,2849.4,2849.1,0.00702992]
[1645197087421,3.5,2849.3,2849.1,0.00702992]
[1645197087623,5.55658,2849.3,2848.7,0.0070303]
[1645197087924,1.75681,2849.1,2848.7,0.0070303]
[1645197088321,0.3,2849.0,2848.7,0.0070303]
[1645197088524,0.87841,2848.9,2848.2,0.1754]
[1645197088725,0.3,2848.8,2848.4,0.00703051]
[1645197088928,1.35894097,2848.7,2848.4,0.00703051]
[1645197089122,1.65894097,2848.7,2848.4,0.00703051]
[1645197089523,2.53733097,2848.7,2847.4,7.2191]
[1645197089722,2.53733097,2848.7,2847.5,1.49546719]
[1645197089723,6.78051097,2848.7,2847.5,1.49546719]
[1645197089923,0.87853,2848.3,2848.0,0.00735516]
[1645197090135,5.0,2848.1,2848.0,0.00735516]
[1645197090323,0.61729087,2847.5,2847.1,0.00183936]
[1645197090572,5.61729087,2847.5,2847.1,0.00183936]
[1645197090769,0.3,2847.4,2846.1,7.3]
[1645197090968,0.8789,2847.2,2846.2,1.49587413]
[1645197091367,0.62266922,2846.7,2846.1,0.6460783]
[1645197091570,1.4789,2847.2,2846.1,0.6460783]
[1645197091771,0.87888,2847.1,2846.1,0.6460783]
[1645197092170,0.6,2847.0,2846.1,0.6460783]
[1645197092367,0.3,2847.0,2846.1,0.6460783]
[1645197092569,0.3,2847.0,2846.7,0.5119276]
[1645197092773,0.3,2847.3,2846.7,0.5119276]
[1645197093169,0.87875,2847.6,2846.1,1.7574408]
[1645197093368,0.87875,2847.6,2845.9,0.1756]
[1645197093369,6.87875,2847.6,2845.9,0.1756]
[1645197093573,6.87875,2847.6,2846.7,0.00197508]
[1645197093574,5.0,2847.3,2846.7,0.00197508]
[1645197093773,5.0,2846.9,2846.7,0.00197508]
[1645197094073,6.1,2846.9,2846.7,0.00197508]
[1645197094314,6.1,2846.9,2846.3,0.00790151]
[1645197094315,3.52511316,2846.8,2846.3,0.00790151]
[1645197094511,3.82511316,2846.8,2846.3,0.00790151]
[1645197094711,0.3,2846.5,2845.3,0.0029873]
[1645197094911,0.53460118,2845.7,2845.3,0.0029873]
[1645197095114,0.3,2846.5,2845.0,7.3]
[1645197095313,7.05837,2846.5,2845.1,0.0029873]
[1645197095514,0.5926,2846.4,2845.1,0.0029873]
[1645197095715,0.8792,2846.1,2844.9,0.0029873]
[1645197095915,1.8792,2846.1,2844.9,0.0029873]
[1645197096115,0.87948,2845.9,2844.9,0.0029873]
[1645197096316,0.57353749,2845.4,2844.9,0.0029873]
[1645197096516,0.57353749,2845.4,2844.8,0.62081821]
[1645197096721,0.57353749,2845.4,2844.7,5.0]
[1645197096916,2.05886,2845.7,2845.5,0.14330896]
[1645197097117,2.35886,2845.7,2845.5,0.14330896]
[1645197097319,1.6,2845.7,2845.5,0.14330896]
[1645197097517,0.6,2845.7,2845.5,0.14330896]
[1645197097719,1.1756,2846.1,2845.5,0.14330896]
[1645197097720,0.1756,2846.1,2845.5,0.14330896]
[1645197098365,0.1756,2846.7,2845.5,0.14521333]
[1645197098566,1.05476,2846.7,2845.5,0.14521333]
[1645197098768,0.58552839,2845.9,2845.5,0.14521333]
[1645197099167,0.88552839,2845.9,2845.5,0.14521333]
[1645197099569,2.06496839,2845.9,2845.5,0.15092709]
[1645197099767,1.05495,2845.8,2845.5,0.15092709]
[1645197099968,0.5,2845.6,2845.5,0.15092709]
[1645197100270,3.81793,2845.7,2845.5,0.15092709]
[1645197100468,4.81793,2845.7,2845.5,0.10092709]
[1645197100666,0.3,2845.7,2845.5,0.10092709]
[1645197100868,0.1756,2845.8,2845.5,0.09330896]
[1645197101066,1.76483839,2845.9,2845.5,0.09330896]
[1645197101067,1.17931,2845.9,2845.5,0.09330896]
[1645197101269,0.3,2845.9,2845.5,0.09330896]
[1645197101470,1.0,2846.5,2845.5,0.09330896]
[1645197101669,0.1757,2846.4,2845.5,0.09330896]
[1645197101928,5.0,2846.3,2845.5,0.09330896]
[1645197102121,0.417,2846.3,2845.5,0.09330896]
[1645197102322,0.8793963,2846.1,2845.5,0.09330896]
[1645197102523,0.417,2846.0,2845.5,0.09330896]
[1645197102937,0.59852489,2845.9,2845.5,0.08330896]
[1645197103121,0.59852489,2845.9,2845.7,0.00172486]
[1645197103720,1.59852489,2845.9,2845.7,0.00172486]
[1645197104120,0.08611616,2845.8,2845.7,0.00172486]
[1645197104319,1.77412489,2845.9,2845.7,0.00172486]
[1645197105121,1.77412489,2845.9,2845.5,0.08330896]
[1645197105557,1.77412489,2845.9,2845.7,0.0017602]
[1645197105757,5.0,2845.8,2845.2,0.00704185]
[1645197105958,2.63834,2845.7,2845.2,0.00704185]
[1645197106159,4.41394,2845.7,2845.2,0.00704185]
[1645197106362,0.87944,2845.5,2844.8,0.0029873]
[1645197106560,0.87944,2845.5,2844.4,0.0029873]
[1645197106763,0.58944734,2845.0,2844.4,0.0029873]
[1645197106962,0.6,2845.5,2844.4,0.0029873]
[1645197107162,0.3,2845.0,2844.4,0.0029873]
[1645197107359,0.3,2845.5,2844.4,0.0029873]
[1645197107560,0.87944,2845.4,2844.4,0.0029873]
[1645197107961,1.47944,2845.4,2844.4,0.0029873]
[1645197108163,0.47544401,2844.9,2844.4,0.0029873]
[1645197108366,0.77544401,2844.9,2844.4,0.0029873]
[1645197108663,0.77544401,2844.9,2844.2,0.0029873]
[1645197108664,0.87966,2844.8,2844.2,0.0029873]
[1645197108860,0.87966,2844.8,2843.9,0.0029873]
[1645197108861,1.17966,2844.8,2843.9,0.0029873]
[1645197109061,1.17966,2844.8,2843.6,0.0029873]
[1645197109062,1.47966,2844.8,2843.6,0.0029873]
[1645197109317,2.47966,2844.8,2843.6,0.0029873]
[1645197109722,2.65526,2844.8,2843.6,0.0029873]
[1645197110129,2.65526,2844.8,2843.3,0.0029873]
[1645197110323,7.65526,2844.8,2844.2,0.007877]
[1645197110520,5.0,2844.5,2844.2,0.007877]
[1645197110719,7.05996,2844.5,2844.2,0.007877]
[1645197110918,1.4756,2844.4,2844.2,0.007877]
[1645197111320,5.0,2844.3,2844.2,0.007877]
[1645197111525,0.8802117,2843.8,2842.6,0.0029873]
[1645197111720,0.88017,2843.3,2842.6,0.0029873]
[1645197111920,0.88017,2843.3,2842.4,0.1756]
[1645197111921,0.88017,2843.3,2842.4,0.55555112]
[1645197112121,0.51495515,2843.5,2842.4,0.55555112]
[1645197112326,0.6,2843.5,2842.4,0.55555112]
[1645197112527,0.3,2843.5,2842.4,20.88555112]
[1645197112722,0.1758,2844.0,2842.4,20.88555112]
[1645197112922,0.87986,2844.0,2842.4,1.43541112]
[1645197113167,0.87986,2844.0,2842.6,0.8798]
[1645197113168,0.3,2844.0,2842.6,0.8798]
[1645197113371,0.3,2844.0,2843.5,0.46882582]
[1645197113667,0.72609317,2844.6,2842.7,0.0029873]
[1645197113668,0.87983,2844.1,2842.7,0.0029873]
[1645197113867,0.87985,2843.9,2842.4,2.9781273]
[1645197114069,0.87985,2843.9,2842.4,1.2185873]
[1645197114267,1.47985,2843.9,2842.5,0.87984]
[1645197114468,0.6,2843.9,2843.3,0.50638229]
[1645197114870,0.3,2843.9,2843.3,0.50638229]
[1645197115168,0.3,2844.0,2843.3,0.50638229]
[1645197115371,0.3,2844.0,2843.1,0.00196932]
[1645197115868,0.87992,2843.8,2843.1,0.00196932]
[1645197116070,1.17992,2843.8,2842.5,0.0029873]
[1645197116269,1.47992,2843.8,2843.4,0.00196924]
[1645197116470,0.6358829,2843.7,2843.4,0.00196924]
[1645197117317,0.1758,2843.6,2843.3,0.006418]
[1645197117518,1.76001,2843.5,2843.3,0.006418]
[1645197117714,0.3,2843.4,2843.3,0.006418]
[1645197118316,0.4758,2843.4,2843.3,0.006418]
[1645197118715,1.4758,2843.4,2843.3,0.006418]
[1645197119117,0.4758,2843.4,2843.3,0.006418]
[1645197119317,0.3,2843.4,2843.3,0.006418]
[1645197119715,0.4758,2843.5,2843.3,0.006418]
[1645197119716,2.06016,2843.5,2843.3,0.006418]
[1645197119917,2.36016,2843.5,2843.3,0.006418]
[1645197120563,2.36016,2843.5,2843.2,0.00190518]
[1645197120760,2.36016,2843.5,2840.0,4.34948913]
[1645197120761,0.88011,2843.1,2841.3,0.88008]
[1645197120960,0.88011,2843.1,2841.9,3.4382]
[1645197121161,1.48011,2843.1,2841.9,3.4382]
[1645197121362,1.48011,2843.1,2842.8,0.00762181]
[1645197121563,1.76025,2843.4,2842.8,0.00762181]
[1645197121766,0.1758,2843.3,2842.8,0.00762181]
[1645197122362,1.76006,2843.4,2842.0,20.33]
[1645197122363,1.76123626,2843.4,2842.0,20.33]
[1645197122562,1.76123626,2843.4,2842.4,0.46641625]
[1645197122767,0.00117626,2843.4,2842.4,0.46641625]
[1645197122965,0.00117626,2843.4,2842.4,20.79641625]
[1645197123565,0.00117618,2843.4,2842.4,20.79641625]
[1645197123763,0.00117618,2843.4,2842.4,20.33]
[1645197124409,0.89909174,2843.8,2842.6,0.87984]
[1645197124809,0.00182804,2843.4,2842.7,0.0018285]
[1645197125415,0.88178804,2843.4,2842.7,0.0018285]
[1645197125713,0.3,2843.3,2842.2,7.717]
[1645197125912,0.3,2843.3,2842.7,0.00196367]
[1645197126114,0.3,2843.3,2842.9,0.5152181]
[1645197126314,0.00196317,2843.4,2842.7,0.00196367]
[1645197126916,1.4800114,2843.6,2842.3,20.33]
[1645197127315,1.4800114,2843.6,2842.7,0.00196367]
[1645197127316,0.00196317,2843.4,2842.7,0.00196367]
[1645197127715,1.48193317,2843.4,2842.7,0.00196367]
[1645197128179,0.1758,2843.3,2842.7,0.00196367]
[1645197128978,0.00196317,2843.4,2842.7,1.76128257]
[1645197129179,0.00196317,2843.4,2843.0,5.0]
[1645197129180,6.317e-05,2843.4,2843.0,5.0]
[1645197129379,6.317e-05,2843.4,2843.1,0.417]
[1645197129579,6.317e-05,2843.4,2842.7,0.417]
[1645197129780,0.00175769,2843.4,2842.7,0.41875813]
[1645197129982,0.00175769,2843.4,2842.9,0.87977]
[1645197130483,0.00175769,2843.4,2843.3,0.62320159]
[1645197130880,0.01924174,2843.8,2843.3,0.62320159]
[1645197131909,0.01924174,2843.8,2842.8,21.543]
[1645197132110,0.01924174,2843.8,2842.8,15.9224]
[1645197133111,0.00196317,2843.5,2842.8,36.25436366]
[1645197133310,0.00196317,2843.5,2843.0,0.54357775]
[1645197134413,0.00196315,2843.5,2843.0,0.54357775]
[1645197134812,0.88,2843.4,2842.8,14.16486364]
[1645197135009,0.3,2843.3,2842.8,7.30196364]
[1645197135309,6.315e-05,2843.5,2842.8,7.30196364]
[1645197135568,6.315e-05,2843.5,2842.9,0.417]
[1645197135770,6.308e-05,2843.5,2843.0,20.33]
[1645197135965,6.308e-05,2843.5,2843.1,2.17614]
[1645197136268,0.00010482,2844.3,2843.4,5.0]
[1645197136468,0.00010482,2844.3,2843.7,5.0]
[1645197136667,0.00010482,2844.3,2843.8,20.747]
[1645197137069,0.1758,2845.3,2844.3,0.87926]
[1645197137269,0.1758,2845.3,2844.8,4.5]
[1645197137468,0.1758,2846.0,2844.8,4.5]
[1645197137869,0.1756,2845.6,2844.3,2.04800814]
[1645197138068,0.00172982,2845.2,2844.3,2.04800814]
[1645197138273,0.00172982,2845.2,2844.3,3.80642814]
[1645197138474,0.00172982,2845.2,2844.3,2.67152814]
[1645197138670,0.00172982,2845.2,2844.3,23.00152814]
[1645197139171,0.00172988,2844.9,2844.3,4.42997814]
[1645197140125,0.1756,2845.7,2844.3,0.91310814]
[1645197140126,0.87945,2845.4,2844.3,0.91310814]
[1645197140325,0.87945,2845.4,2844.8,0.65300059]
[1645197140326,1.17945,2845.4,2844.8,0.65300059]
[1645197140523,0.6,2845.4,2844.8,0.65300059]
[1645197140725,0.3,2845.4,2844.8,0.65300059]
[1645197140930,0.3,2845.5,2844.2,0.87934]
[1645197141127,0.3,2845.5,2844.1,1.75866]
[1645197141324,1.1756,2845.7,2844.1,1.75866]
[1645197141325,1.7756,2845.7,2844.1,1.75866]
[1645197141522,0.8794028,2845.6,2844.1,1.75866]
[1645197141725,0.0019618,2845.2,2844.1,1.75866]
[1645197141923,0.0019618,2845.2,2844.8,0.61695631]
[1645197142123,6.18e-05,2845.2,2844.8,0.61695631]
[1645197142628,6.18e-05,2845.2,2845.0,5.0]
[1645197142825,0.1756,2846.5,2845.5,0.51770616]
[1645197143469,1.69145015,2847.4,2845.5,0.51770616]
[1645197143470,2.8133,2846.9,2845.5,0.51770616]
[1645197143666,0.87914,2846.4,2845.5,0.51770616]
[1645197143965,1.3528992,2846.4,2845.5,0.51770616]
[1645197144363,0.1756,2846.3,2845.5,0.51770616]
[1645197144563,0.87926,2846.1,2845.5,0.51770616]
[1645197144968,0.4756,2846.0,2845.5,0.51770616]
[1645197145167,1.35504,2846.0,2845.5,0.51770616]
[1645197145368,0.17756381,2846.0,2845.5,0.51770616]
[1645197145567,0.87947,2845.7,2845.5,0.51770616]
[1645197145767,6.7589902,2845.7,2843.9,6.5119]
[1645197145969,0.7756,2845.6,2843.9,6.5119]
[1645197146167,0.7756,2845.6,2843.6,3.0966]
[1645197146168,5.0,2845.3,2843.6,3.0966]
[1645197146569,5.0,2845.3,2843.9,0.57765343]
[1645197146570,0.56376889,2844.9,2843.9,0.57765343]
[1645197146838,3.35183,2845.2,2843.9,0.57765343]
[1645197146839,0.87969,2844.7,2843.9,0.57765343]
[1645197147319,2.47969,2844.7,2843.9,0.57765343]
[1645197147519,0.6,2844.7,2843.6,3.0966]
[1645197147719,1.6,2844.7,2843.6,3.0966]
[1645197147920,0.87964,2844.5,2843.6,3.0966]
[1645197148122,0.87964,2844.5,2843.3,0.00982484]
[1645197148123,0.3,2844.4,2843.3,0.00982484]
[1645197148321,0.6,2844.4,2843.3,0.00982484]
[1645197148525,0.3,2844.4,2843.6,10.55583018]
[1645197148723,2.35944,2844.6,2843.6,10.55583018]
[1645197148922,0.3,2844.4,2843.6,10.55583018]
[1645197149122,0.87965,2844.5,2843.6,10.55583018]
[1645197149321,0.6,2844.4,2843.6,10.55583018]
[1645197149721,1.4187126,2844.7,2843.6,10.55583018]
[1645197150125,0.8797554,2844.3,2843.6,10.55583018]
[1645197150422,0.87976,2844.2,2843.6,10.55583018]
[1645197150682,1.0,2844.6,2843.6,10.55583018]
[1645197150873,0.7758,2844.7,2843.6,10.55878219]
[1645197151079,0.6,2844.7,2843.6,10.55878219]
[1645197151279,0.00170669,2845.3,2843.7,20.747]
[1645197151473,0.00170669,2845.3,2843.7,20.74995201]
[1645197151474,0.00116603,2845.3,2843.7,20.74995201]
[1645197151674,0.00116603,2845.3,2844.6,0.57670114]
[1645197152277,0.8794137,2845.3,2844.6,0.57670114]
[1645197152478,0.87942,2845.2,2844.6,0.57670114]
[1645197152676,0.88058016,2845.3,2844.6,0.57670114]
[1645197152677,0.00116646,2845.3,2844.6,0.57670114]
[1645197153276,1.75884,2845.5,2844.6,0.57670114]
[1645197153478,1.89703066,2845.6,2844.6,20.90670114]
[1645197153479,0.13819996,2845.6,2844.6,20.90670114]
[1645197153681,0.00194116,2845.3,2844.6,20.90670114]
[1645197153877,0.00194116,2845.3,2844.6,0.57670114]
[1645197154523,0.00194116,2845.3,2844.7,0.1756]
[1645197154923,0.00194116,2845.3,2845.1,0.55481358]
[1645197155123,0.00194116,2845.3,2844.7,0.1756]
[1645197155524,0.00194116,2845.3,2844.7,20.5056]
[1645197155924,0.00194116,2845.3,2844.9,5.0]
[1645197155925,4.116e-05,2845.3,2844.9,5.0]
[1645197156127,0.5,2846.3,2845.2,0.87902]
[1645197156327,0.5,2846.3,2845.2,26.20902]
[1645197156328,4.118e-05,2845.3,2845.2,26.20902]
[1645197156723,4.118e-05,2845.3,2845.2,21.20902]
[1645197156925,4.118e-05,2845.3,2845.2,26.38462]
[1645197157124,1.80146,2847.0,2845.2,28.55946]
[1645197157325,0.9226,2847.0,2845.5,0.87894]
[1645197157524,0.9226,2847.0,2846.2,0.57893383]
[1645197158165,1.8014593,2847.0,2846.2,0.57893383]
[1645197158369,0.6,2846.9,2846.2,0.57893383]
[1645197158568,0.9226,2847.0,2846.2,0.57893383]
[1645197159065,0.9226,2847.0,2846.9,0.60037313]
[1645197159368,0.1756,2847.8,2846.9,0.60037313]
[1645197159565,0.87872,2847.7,2846.9,0.60037313]
[1645197160170,0.87866,2847.7,2846.9,0.60037313]
[1645197160366,0.87866,2847.7,2846.9,0.54033582]
[1645197160565,1.93304,2847.8,2846.9,0.54033582]
[1645197160566,0.1756,2847.8,2846.9,0.54033582]
[1645197160767,0.1756,2847.8,2846.3,6.89419]
[1645197160967,0.00189947,2847.4,2846.2,14.5372]
[1645197161166,0.00189947,2847.4,2846.2,13.2958]
[1645197161167,0.8788691,2847.2,2846.2,13.2958]
[1645197161370,0.8788691,2847.2,2846.2,10.0]
[1645197161566,0.1756,2847.3,2846.2,10.0]
[1645197161817,2.8125372,2847.1,2846.2,10.0]
[1645197162013,0.3,2847.0,2846.2,10.0]
[1645197162218,0.00196362,2846.8,2846.2,10.0]
[1645197162515,0.88098032,2846.8,2846.2,10.0]
[1645197162715,1.17908,2846.7,2846.2,10.0]
[1645197163117,0.3,2846.5,2846.2,10.0]
[1645197163313,1.17909,2846.5,2846.2,10.0]
[1645197163717,2.17909,2846.5,2846.2,10.0]
[1645197163920,1.75841,2846.4,2846.2,10.0]
[1645197164117,2.27622164,2846.4,2846.2,10.0]
[1645197164315,0.3,2846.3,2846.2,10.0]
[1645197164516,2.05846,2846.3,2846.2,10.0]
[1645197164714,2.35846,2846.3,2846.2,10.0]
[1645197164916,3.35846,2846.3,2846.2,10.0]